[Event "Early-Titled-Tuesday-Blitz-February-06-2024"]
[Site "Chess.com"]
[Date "2024.02.06"]
[Round "6"]
[White "Aash20"]
[Black "NowInChess"]
[Result "0-1"]
[WhiteElo "2454"]
[BlackElo "2341"]
[TimeControl "180+1"]
[EndTime "9:06:53 PST"]
[Termination "NowInChess won by resignation"]

1. e4 {[%clk 0:03:00.9]} 1... e6 {[%clk 0:03:00.2]} 2. d4 {[%clk 0:02:58.1]}
2... d5 {[%clk 0:03:00.7]} 3. Nd2 {[%clk 0:02:57.4]} 3... Nc6 {[%clk 0:03:00.5]}
4. Ngf3 {[%clk 0:02:55]} 4... Nf6 {[%clk 0:03:00.2]} 5. e5 {[%clk 0:02:54.8]}
5... Nd7 {[%clk 0:03:00.4]} 6. Bd3 {[%clk 0:02:53.6]} 6... f6 {[%clk 0:02:59.6]}
7. exf6 {[%clk 0:02:53.3]} 7... Qxf6 {[%clk 0:03:00.5]} 8. c3 {[%clk 0:02:52.9]}
8... Bd6 {[%clk 0:03:00.1]} 9. O-O {[%clk 0:02:49.7]} 9... O-O {[%clk
0:02:59.9]} 10. Nb3 {[%clk 0:02:46.7]} 10... e5 {[%clk 0:02:59.3]} 11. dxe5
{[%clk 0:02:45.4]} 11... Ndxe5 {[%clk 0:02:59.2]} 12. Nxe5 {[%clk 0:02:45.2]}
12... Nxe5 {[%clk 0:02:52.3]} 13. Bc2 {[%clk 0:02:44.2]} 13... c6 {[%clk
0:02:47]} 14. Nd4 {[%clk 0:02:42.2]} 14... Ng4 {[%clk 0:02:30.5]} 15. Nf3 {[%clk
0:02:32]} 15... Bf5 {[%clk 0:02:09.7]} 16. h3 {[%clk 0:02:25.8]} 16... Ne5
{[%clk 0:01:54.4]} 17. Bxf5 {[%clk 0:02:21.8]} 17... Qxf5 {[%clk 0:01:52.5]} 18.
Nxe5 {[%clk 0:02:18.8]} 18... Qxe5 {[%clk 0:01:52.3]} 19. f4 {[%clk 0:02:13.3]}
19... Qf6 {[%clk 0:01:32.3]} 20. Kh1 {[%clk 0:02:11.4]} 20... Rae8 {[%clk
0:01:28.1]} 21. Bd2 {[%clk 0:02:10.8]} 21... Qh4 {[%clk 0:01:23.1]} 22. Qf3
{[%clk 0:02:08.2]} 22... Re4 {[%clk 0:01:15]} 23. f5 {[%clk 0:01:58.4]} 23...
Bg3 {[%clk 0:00:39]} 24. Rac1 {[%clk 0:01:41]} 24... b5 {[%clk 0:00:35.8]} 25.
Rcd1 {[%clk 0:01:36.3]} 25... Rfe8 {[%clk 0:00:30.3]} 26. f6 {[%clk 0:01:31.8]}
26... gxf6 {[%clk 0:00:29.4]} 27. Qxf6 {[%clk 0:01:23.9]} 27... Qxf6 {[%clk
0:00:30.3]} 28. Rxf6 {[%clk 0:01:23.7]} 28... Re2 {[%clk 0:00:26]} 29. Rxc6
{[%clk 0:01:20]} 29... Rxd2 {[%clk 0:00:23.7]} 30. Rf1 {[%clk 0:01:19]} 30...
Re1 {[%clk 0:00:20.5]} 31. Rxe1 {[%clk 0:01:18.2]} 31... Bxe1 {[%clk 0:00:21.4]}
32. g4 {[%clk 0:01:18.5]} 32... Rxb2 {[%clk 0:00:19.1]} 33. Rd6 {[%clk
0:01:16.7]} 33... Bxc3 {[%clk 0:00:17.3]} 34. Rxd5 {[%clk 0:01:16.3]} 34... b4
{[%clk 0:00:17.3]} 35. Ra5 {[%clk 0:01:16.2]} 35... Bd4 {[%clk 0:00:16.7]} 36.
Ra6 {[%clk 0:01:13.6]} 36... Bb6 {[%clk 0:00:16.3]} 37. h4 {[%clk 0:01:11.5]}
37... Kg7 {[%clk 0:00:15.9]} 38. Ra4 {[%clk 0:01:09.3]} 38... a5 {[%clk
0:00:14.2]} 39. a3 {[%clk 0:01:09.3]} 39... Ra2 {[%clk 0:00:14]} 40. h5 {[%clk
0:01:08.3]} 40... Rxa3 {[%clk 0:00:13.8]} 41. Rxa3 {[%clk 0:01:07.5]} 41... bxa3
{[%clk 0:00:14.7]} 42. g5 {[%clk 0:01:08.2]} 42... a2 {[%clk 0:00:15.3]} 43. h6+
{[%clk 0:01:09.1]} 43... Kg6 {[%clk 0:00:15.7]} 44. Kg2 {[%clk 0:01:09.7]} 44...
a1=Q {[%clk 0:00:16]} 0-1

[Event "Early-Titled-Tuesday-Blitz-February-06-2024"]
[Site "Chess.com"]
[Date "2024.02.06"]
[Round "6"]
[White "KaterynaLagno"]
[Black "Raud100"]
[Result "1-0"]
[WhiteElo "2803"]
[BlackElo "2430"]
[TimeControl "180+1"]
[EndTime "9:06:55 PST"]
[Termination "KaterynaLagno won on time"]

1. e4 {[%clk 0:03:00.9]} 1... d6 {[%clk 0:02:59.6]} 2. d4 {[%clk 0:03:00.7]}
2... Nf6 {[%clk 0:03:00.5]} 3. Nc3 {[%clk 0:03:00.3]} 3... g6 {[%clk 0:03:01.1]}
4. Be3 {[%clk 0:02:58.9]} 4... c6 {[%clk 0:03:01.2]} 5. Nf3 {[%clk 0:02:56.3]}
5... b5 {[%clk 0:03:01.7]} 6. Bd3 {[%clk 0:02:53.5]} 6... b4 {[%clk 0:03:00]} 7.
Ne2 {[%clk 0:02:52.7]} 7... a5 {[%clk 0:03:00.9]} 8. c3 {[%clk 0:02:47.7]} 8...
Ba6 {[%clk 0:02:56.7]} 9. Ng3 {[%clk 0:02:44.8]} 9... Bg7 {[%clk 0:02:55.1]} 10.
c4 {[%clk 0:02:39.8]} 10... O-O {[%clk 0:02:52]} 11. b3 {[%clk 0:02:38.4]} 11...
Nbd7 {[%clk 0:02:50.3]} 12. h3 {[%clk 0:02:36]} 12... e5 {[%clk 0:02:41.6]} 13.
O-O {[%clk 0:02:30.1]} 13... c5 {[%clk 0:02:38.4]} 14. d5 {[%clk 0:02:28.1]}
14... Ne8 {[%clk 0:02:36.4]} 15. a4 {[%clk 0:02:17.7]} 15... Bc8 {[%clk
0:02:28.6]} 16. Qd2 {[%clk 0:02:11.9]} 16... f6 {[%clk 0:02:01.4]} 17. h4 {[%clk
0:02:06.4]} 17... Rf7 {[%clk 0:01:57.4]} 18. Nh2 {[%clk 0:02:04.1]} 18... h5
{[%clk 0:01:53.7]} 19. Ne2 {[%clk 0:01:53.3]} 19... f5 {[%clk 0:01:47.7]} 20.
exf5 {[%clk 0:01:49.9]} 20... gxf5 {[%clk 0:01:48.6]} 21. Bg5 {[%clk 0:01:48.2]}
21... Ndf6 {[%clk 0:01:40.3]} 22. Ng3 {[%clk 0:01:46.4]} 22... e4 {[%clk
0:01:34.6]} 23. Be2 {[%clk 0:01:44.3]} 23... Qc7 {[%clk 0:01:28.6]} 24. Rae1
{[%clk 0:01:44.1]} 24... Ng4 {[%clk 0:00:51.2]} 25. Nxh5 {[%clk 0:01:39.7]}
25... Bc3 {[%clk 0:00:49.1]} 26. Qc1 {[%clk 0:01:35.4]} 26... Nxh2 {[%clk
0:00:46.4]} 27. Kxh2 {[%clk 0:01:35]} 27... Bxe1 {[%clk 0:00:45.8]} 28. Rxe1
{[%clk 0:01:35.9]} 28... Rh7 {[%clk 0:00:37.1]} 29. Nf4 {[%clk 0:01:25]} 29...
Qf7 {[%clk 0:00:31.1]} 30. Qb2 {[%clk 0:01:19.6]} 30... Qg7 {[%clk 0:00:29.3]}
31. Qxg7+ {[%clk 0:01:16.6]} 31... Nxg7 {[%clk 0:00:28.2]} 32. f3 {[%clk
0:01:10.9]} 32... Kf7 {[%clk 0:00:25.2]} 33. Bd1 {[%clk 0:01:09.1]} 33... Bd7
{[%clk 0:00:15.6]} 34. fxe4 {[%clk 0:01:06.6]} 34... Re8 {[%clk 0:00:15]} 35.
Bc2 {[%clk 0:01:04.4]} 35... Nh5 {[%clk 0:00:12.6]} 36. Rf1 {[%clk 0:01:01.1]}
36... Nxf4 {[%clk 0:00:08.5]} 37. Rxf4 {[%clk 0:01:02]} 37... Rhh8 {[%clk
0:00:02.4]} 38. g4 {[%clk 0:00:57.9]} 1-0

[Event "Early-Titled-Tuesday-Blitz-February-06-2024"]
[Site "Chess.com"]
[Date "2024.02.06"]
[Round "6"]
[White "MokshAD1603"]
[Black "maciek_92"]
[Result "1-0"]
[WhiteElo "2615"]
[BlackElo "2789"]
[TimeControl "180+1"]
[EndTime "9:06:56 PST"]
[Termination "MokshAD1603 won by checkmate"]

1. d4 {[%clk 0:02:42.4]} 1... d5 {[%clk 0:02:59.8]} 2. c4 {[%clk 0:02:33.7]}
2... e6 {[%clk 0:02:59.3]} 3. Nf3 {[%clk 0:02:33.2]} 3... Nf6 {[%clk 0:02:58.4]}
4. Nc3 {[%clk 0:02:32.4]} 4... Be7 {[%clk 0:02:57.8]} 5. Bf4 {[%clk 0:02:28.7]}
5... O-O {[%clk 0:02:57]} 6. e3 {[%clk 0:02:29.5]} 6... b6 {[%clk 0:02:57.1]} 7.
Bd3 {[%clk 0:02:27.2]} 7... Bb7 {[%clk 0:02:57.1]} 8. cxd5 {[%clk 0:02:26.8]}
8... exd5 {[%clk 0:02:56.6]} 9. O-O {[%clk 0:02:26.7]} 9... c5 {[%clk
0:02:56.6]} 10. Ne5 {[%clk 0:02:21.6]} 10... Nc6 {[%clk 0:02:51.3]} 11. Qf3
{[%clk 0:02:20.3]} 11... cxd4 {[%clk 0:02:38.3]} 12. Nxc6 {[%clk 0:02:18.1]}
12... Bxc6 {[%clk 0:02:39.2]} 13. exd4 {[%clk 0:02:18.9]} 13... h6 {[%clk
0:02:12.4]} 14. Rfe1 {[%clk 0:02:15.4]} 14... Re8 {[%clk 0:02:04.2]} 15. Rac1
{[%clk 0:02:09.9]} 15... Qd7 {[%clk 0:01:45.7]} 16. h3 {[%clk 0:01:56.1]} 16...
Nh7 {[%clk 0:01:30.3]} 17. Be5 {[%clk 0:01:18]} 17... Bg5 {[%clk 0:01:27.8]} 18.
Bf5 {[%clk 0:01:11.8]} 18... Qb7 {[%clk 0:01:24.7]} 19. Rcd1 {[%clk 0:01:09.9]}
19... g6 {[%clk 0:01:07.4]} 20. Bc2 {[%clk 0:01:09.9]} 20... Rad8 {[%clk
0:00:59.1]} 21. Bb3 {[%clk 0:01:00.1]} 21... Be7 {[%clk 0:00:51]} 22. Bf4 {[%clk
0:00:50.9]} 22... Ng5 {[%clk 0:00:49.8]} 23. Bxg5 {[%clk 0:00:51.2]} 23... hxg5
{[%clk 0:00:47.9]} 24. Re5 {[%clk 0:00:51.8]} 24... Bb4 {[%clk 0:00:26.5]} 25.
Nxd5 {[%clk 0:00:48]} 25... Bxd5 {[%clk 0:00:07.3]} 26. Bxd5 {[%clk 0:00:43.8]}
26... Qc7 {[%clk 0:00:05.8]} 27. Qf6 {[%clk 0:00:36.7]} 27... Kf8 {[%clk
0:00:03.3]} 28. Qh8# {[%clk 0:00:34]} 1-0

[Event "Early-Titled-Tuesday-Blitz-February-06-2024"]
[Site "Chess.com"]
[Date "2024.02.06"]
[Round "6"]
[White "Juicy_Fork"]
[Black "Vazabanga"]
[Result "1-0"]
[WhiteElo "2459"]
[BlackElo "2631"]
[TimeControl "180+1"]
[EndTime "9:07:00 PST"]
[Termination "Juicy_Fork won on time"]

1. e4 {[%clk 0:03:00.9]} 1... c5 {[%clk 0:03:00]} 2. Nf3 {[%clk 0:02:57.6]} 2...
d6 {[%clk 0:03:00.4]} 3. d4 {[%clk 0:02:54.8]} 3... cxd4 {[%clk 0:03:01.3]} 4.
Nxd4 {[%clk 0:02:55.7]} 4... Nf6 {[%clk 0:03:01.7]} 5. Nc3 {[%clk 0:02:49.7]}
5... Nc6 {[%clk 0:03:01.4]} 6. Bg5 {[%clk 0:02:48.9]} 6... e6 {[%clk 0:03:01.6]}
7. Qd3 {[%clk 0:02:49]} 7... Bd7 {[%clk 0:02:59.2]} 8. Ndb5 {[%clk 0:02:46.3]}
8... d5 {[%clk 0:02:13.6]} 9. Bxf6 {[%clk 0:02:37.2]} 9... gxf6 {[%clk
0:02:06.8]} 10. exd5 {[%clk 0:02:37.1]} 10... Nb4 {[%clk 0:02:06]} 11. Qd2
{[%clk 0:02:27.7]} 11... a6 {[%clk 0:02:01.1]} 12. dxe6 {[%clk 0:02:21]} 12...
Bxb5 {[%clk 0:01:55.7]} 13. exf7+ {[%clk 0:02:13.7]} 13... Kxf7 {[%clk
0:01:52.6]} 14. Nxb5 {[%clk 0:01:45.8]} 14... Qxd2+ {[%clk 0:01:38.4]} 15. Kxd2
{[%clk 0:01:45.7]} 15... axb5 {[%clk 0:01:34.6]} 16. Bxb5 {[%clk 0:01:45.3]}
16... Rd8+ {[%clk 0:01:31.3]} 17. Kc3 {[%clk 0:01:44]} 17... Rc8+ {[%clk
0:01:21.6]} 18. Bc4+ {[%clk 0:01:36.6]} 18... Kg6 {[%clk 0:01:20.5]} 19. Kb3
{[%clk 0:01:35.1]} 19... Nc6 {[%clk 0:01:20.4]} 20. Bd3+ {[%clk 0:01:33.7]}
20... f5 {[%clk 0:01:20]} 21. c3 {[%clk 0:01:33]} 21... Bg7 {[%clk 0:01:16.1]}
22. g4 {[%clk 0:01:32.3]} 22... Kg5 {[%clk 0:00:47.7]} 23. h4+ {[%clk
0:01:27.6]} 23... Kf4 {[%clk 0:00:44.8]} 24. Bxf5 {[%clk 0:01:26.4]} 24... Rcd8
{[%clk 0:00:42.7]} 25. Rae1 {[%clk 0:01:25.7]} 25... Rhe8 {[%clk 0:00:18.1]} 26.
Rxe8 {[%clk 0:01:25]} 26... Rxe8 {[%clk 0:00:19]} 27. Bxh7 {[%clk 0:01:25.7]}
27... Re2 {[%clk 0:00:12.5]} 28. h5 {[%clk 0:01:23]} 28... Bh6 {[%clk
0:00:06.9]} 29. Bf5 {[%clk 0:01:08.4]} 29... Rxf2 {[%clk 0:00:06.1]} 30. Re1
{[%clk 0:01:06.8]} 30... Na5+ {[%clk 0:00:05.1]} 31. Ka4 {[%clk 0:01:07.1]}
31... b6 {[%clk 0:00:03.1]} 32. b4 {[%clk 0:00:58]} 32... Rxa2+ {[%clk 0:00:01]}
33. Kb5 {[%clk 0:00:58.4]} 33... Nb3 {[%clk 0:00:01.7]} 34. Kxb6 {[%clk
0:00:57]} 34... Bg5 {[%clk 0:00:02.1]} 35. Re4+ {[%clk 0:00:52.1]} 35... Kf3
{[%clk 0:00:01.9]} 36. Re6 {[%clk 0:00:53]} 36... Rc2 {[%clk 0:00:02]} 37. Bxc2
{[%clk 0:00:52.8]} 1-0

[Event "Early-Titled-Tuesday-Blitz-February-06-2024"]
[Site "Chess.com"]
[Date "2024.02.06"]
[Round "6"]
[White "PepeCuenca"]
[Black "lilleper1"]
[Result "0-1"]
[WhiteElo "2707"]
[BlackElo "2913"]
[TimeControl "180+1"]
[EndTime "9:07:01 PST"]
[Termination "lilleper1 won on time"]

1. d4 {[%clk 0:03:00.9]} 1... Nf6 {[%clk 0:02:59.7]} 2. Bf4 {[%clk 0:03:01.3]}
2... d5 {[%clk 0:02:56.7]} 3. e3 {[%clk 0:03:01.3]} 3... c5 {[%clk 0:02:56.6]}
4. dxc5 {[%clk 0:03:01.9]} 4... Nc6 {[%clk 0:02:55.6]} 5. Bb5 {[%clk 0:03:02.1]}
5... g6 {[%clk 0:02:52.5]} 6. c3 {[%clk 0:02:32.2]} 6... Bg7 {[%clk 0:02:49.8]}
7. Nf3 {[%clk 0:02:29.3]} 7... O-O {[%clk 0:02:49]} 8. Nbd2 {[%clk 0:02:06.2]}
8... Nd7 {[%clk 0:02:45]} 9. Nb3 {[%clk 0:01:59.4]} 9... a6 {[%clk 0:02:35.3]}
10. Bxc6 {[%clk 0:01:56.5]} 10... bxc6 {[%clk 0:02:36.2]} 11. h3 {[%clk
0:01:24.4]} 11... a5 {[%clk 0:02:35.8]} 12. O-O {[%clk 0:01:14.8]} 12... e5
{[%clk 0:02:32.7]} 13. Bh2 {[%clk 0:01:13.8]} 13... Re8 {[%clk 0:02:30.1]} 14.
a4 {[%clk 0:01:11.3]} 14... Ba6 {[%clk 0:02:28.7]} 15. Re1 {[%clk 0:01:11.5]}
15... Rb8 {[%clk 0:02:26.8]} 16. Nfd2 {[%clk 0:01:05.8]} 16... f5 {[%clk
0:02:02.6]} 17. Qc2 {[%clk 0:01:02.1]} 17... Qf6 {[%clk 0:01:29]} 18. c4 {[%clk
0:01:00.1]} 18... Qe6 {[%clk 0:01:23]} 19. Nxa5 {[%clk 0:00:53.3]} 19... Nxc5
{[%clk 0:01:18.5]} 20. b4 {[%clk 0:00:43.6]} 20... Rxb4 {[%clk 0:01:11.1]} 21.
cxd5 {[%clk 0:00:23.3]} 21... Qxd5 {[%clk 0:01:09.7]} 22. Rec1 {[%clk
0:00:23.4]} 22... Bf8 {[%clk 0:00:55.2]} 23. Ndc4 {[%clk 0:00:18.5]} 23... Nd3
{[%clk 0:00:53.2]} 24. Rd1 {[%clk 0:00:15.3]} 24... Rxc4 {[%clk 0:00:48.5]} 25.
Qxd3 {[%clk 0:00:06.3]} 25... Qxa5 {[%clk 0:00:48.3]} 26. Qd7 {[%clk 0:00:04.6]}
26... Re7 {[%clk 0:00:47.8]} 27. Qd8 {[%clk 0:00:03]} 27... Qxd8 {[%clk
0:00:46.7]} 28. Rxd8 {[%clk 0:00:03.9]} 28... Kf7 {[%clk 0:00:45.6]} 29. Ra8
{[%clk 0:00:03.6]} 29... Bb7 {[%clk 0:00:44.5]} 30. Ra7 {[%clk 0:00:04.2]} 30...
Rd7 {[%clk 0:00:36.4]} 31. Bxe5 {[%clk 0:00:03.3]} 31... Bc5 {[%clk 0:00:35.9]}
0-1

[Event "Early-Titled-Tuesday-Blitz-February-06-2024"]
[Site "Chess.com"]
[Date "2024.02.06"]
[Round "6"]
[White "Darius321"]
[Black "IsaqueGoncalvesSanto"]
[Result "1-0"]
[WhiteElo "2373"]
[BlackElo "1857"]
[TimeControl "180+1"]
[EndTime "9:07:02 PST"]
[Termination "Darius321 won on time"]

1. e4 {[%clk 0:03:00.9]} 1... e6 {[%clk 0:02:56.9]} 2. d4 {[%clk 0:03:00.3]}
2... d5 {[%clk 0:02:56.8]} 3. e5 {[%clk 0:03:01]} 3... c5 {[%clk 0:02:56.4]} 4.
c3 {[%clk 0:03:01.6]} 4... Nc6 {[%clk 0:02:56.6]} 5. Nf3 {[%clk 0:03:02]} 5...
Bd7 {[%clk 0:02:54.1]} 6. a3 {[%clk 0:02:59.9]} 6... c4 {[%clk 0:02:47.6]} 7.
Be2 {[%clk 0:02:59.8]} 7... Qb6 {[%clk 0:02:47.3]} 8. O-O {[%clk 0:02:58.8]}
8... Nge7 {[%clk 0:02:45.8]} 9. Re1 {[%clk 0:02:53.8]} 9... f5 {[%clk
0:02:43.5]} 10. exf6 {[%clk 0:02:49.4]} 10... gxf6 {[%clk 0:02:42.3]} 11. Nbd2
{[%clk 0:02:47.7]} 11... Na5 {[%clk 0:02:38.8]} 12. Nf1 {[%clk 0:02:43.4]} 12...
O-O-O {[%clk 0:02:37]} 13. Bf4 {[%clk 0:02:39.6]} 13... Ng6 {[%clk 0:02:33.2]}
14. Bg3 {[%clk 0:02:39.5]} 14... Nb3 {[%clk 0:02:32.2]} 15. Rb1 {[%clk
0:02:38.3]} 15... Bd6 {[%clk 0:02:31.7]} 16. N3d2 {[%clk 0:02:30.7]} 16... Ba4
{[%clk 0:02:18]} 17. Nxb3 {[%clk 0:02:28.1]} 17... Bxb3 {[%clk 0:02:17.7]} 18.
Qd2 {[%clk 0:02:28.4]} 18... Rde8 {[%clk 0:02:10.7]} 19. Bd1 {[%clk 0:02:23.8]}
19... Bxd1 {[%clk 0:01:46.2]} 20. Qxd1 {[%clk 0:02:24.7]} 20... Qc7 {[%clk
0:01:42.4]} 21. b3 {[%clk 0:02:23.6]} 21... Bxg3 {[%clk 0:01:39.3]} 22. Nxg3
{[%clk 0:02:18.9]} 22... h5 {[%clk 0:01:27.5]} 23. bxc4 {[%clk 0:02:17.5]} 23...
Qxc4 {[%clk 0:01:25.8]} 24. Nf1 {[%clk 0:02:06]} 24... Kb8 {[%clk 0:01:20.6]}
25. Ne3 {[%clk 0:02:05.3]} 25... Qxc3 {[%clk 0:01:15.9]} 26. Rb3 {[%clk
0:02:05.4]} 26... Qc6 {[%clk 0:01:09.6]} 27. Qb1 {[%clk 0:02:00.6]} 27... Rc8
{[%clk 0:01:05.4]} 28. Qxg6 {[%clk 0:01:59]} 28... e5 {[%clk 0:01:00.8]} 29.
dxe5 {[%clk 0:01:52.9]} 29... d4 {[%clk 0:01:01.1]} 30. Qxf6 {[%clk 0:01:40.1]}
30... dxe3 {[%clk 0:00:58.4]} 31. Rbxe3 {[%clk 0:01:32.3]} 31... Qd5 {[%clk
0:00:36.4]} 32. Qd6+ {[%clk 0:01:31.1]} 32... Qxd6 {[%clk 0:00:35.8]} 33. exd6
{[%clk 0:01:32]} 33... Rhd8 {[%clk 0:00:24.3]} 34. Rd3 {[%clk 0:01:23.8]} 34...
Rc6 {[%clk 0:00:23.1]} 35. Red1 {[%clk 0:01:23.3]} 35... b6 {[%clk 0:00:21.7]}
36. g3 {[%clk 0:01:20.3]} 36... Kb7 {[%clk 0:00:20.6]} 37. h4 {[%clk 0:01:20.3]}
37... a6 {[%clk 0:00:20.1]} 38. Rd5 {[%clk 0:01:20.2]} 38... b5 {[%clk
0:00:19.8]} 39. Rxh5 {[%clk 0:01:19.1]} 39... Rdxd6 {[%clk 0:00:18.9]} 40. Rxd6
{[%clk 0:01:17.4]} 40... Rxd6 {[%clk 0:00:19.2]} 41. g4 {[%clk 0:01:06.5]} 41...
Rd3 {[%clk 0:00:15.1]} 42. g5 {[%clk 0:01:04.7]} 42... Rxa3 {[%clk 0:00:15]} 43.
g6 {[%clk 0:01:05.1]} 43... Rc3 {[%clk 0:00:09]} 44. g7 {[%clk 0:01:04.6]} 44...
Rc8 {[%clk 0:00:07.3]} 45. Rh8 {[%clk 0:01:04.7]} 1-0

[Event "Early-Titled-Tuesday-Blitz-February-06-2024"]
[Site "Chess.com"]
[Date "2024.02.06"]
[Round "6"]
[White "Kapitan_Bayan"]
[Black "ProChessWICTH"]
[Result "0-1"]
[WhiteElo "2385"]
[BlackElo "2526"]
[TimeControl "180+1"]
[EndTime "9:07:04 PST"]
[Termination "ProChessWICTH won by checkmate"]

1. e4 {[%clk 0:02:58.8]} 1... c5 {[%clk 0:02:59.6]} 2. Nf3 {[%clk 0:02:58.9]}
2... e6 {[%clk 0:02:59.3]} 3. d4 {[%clk 0:02:57.9]} 3... cxd4 {[%clk 0:03:00.2]}
4. Nxd4 {[%clk 0:02:58.1]} 4... a6 {[%clk 0:03:00.9]} 5. c4 {[%clk 0:02:58.2]}
5... Nf6 {[%clk 0:02:58.9]} 6. Nc3 {[%clk 0:02:58.2]} 6... Bb4 {[%clk
0:02:56.9]} 7. f3 {[%clk 0:02:56.9]} 7... O-O {[%clk 0:02:47.8]} 8. Bg5 {[%clk
0:02:52.7]} 8... Qa5 {[%clk 0:02:33.2]} 9. Bxf6 {[%clk 0:02:35.6]} 9... Bxc3+
{[%clk 0:02:25.9]} 10. bxc3 {[%clk 0:02:35.1]} 10... Qxc3+ {[%clk 0:02:24.5]}
11. Kf2 {[%clk 0:02:33.6]} 11... gxf6 {[%clk 0:02:24.8]} 12. Rc1 {[%clk
0:02:33]} 12... Qa5 {[%clk 0:02:20.8]} 13. Be2 {[%clk 0:02:31.4]} 13... Nc6
{[%clk 0:02:16.9]} 14. Nb3 {[%clk 0:02:29.6]} 14... Qc7 {[%clk 0:02:10.6]} 15.
Rf1 {[%clk 0:02:17.8]} 15... b6 {[%clk 0:01:50.8]} 16. Kg1 {[%clk 0:02:14.9]}
16... Bb7 {[%clk 0:01:51]} 17. f4 {[%clk 0:02:06.6]} 17... Ne7 {[%clk
0:01:49.7]} 18. Bd3 {[%clk 0:02:00.3]} 18... Ng6 {[%clk 0:01:40.5]} 19. Qg4
{[%clk 0:01:57.3]} 19... Kh8 {[%clk 0:01:28.3]} 20. h4 {[%clk 0:01:52.3]} 20...
Rg8 {[%clk 0:01:22.8]} 21. g3 {[%clk 0:01:49.9]} 21... Nxf4 {[%clk 0:01:14.8]}
22. Qxf4 {[%clk 0:01:45.3]} 22... Qxf4 {[%clk 0:01:14.6]} 23. Rxf4 {[%clk
0:01:43.7]} 23... Rxg3+ {[%clk 0:01:15.2]} 24. Kf2 {[%clk 0:01:44]} 24... Rxd3
{[%clk 0:01:15.4]} 25. Rg1 {[%clk 0:01:36.8]} 25... Rg8 {[%clk 0:01:10.3]} 26.
Rxg8+ {[%clk 0:01:35.2]} 26... Kxg8 {[%clk 0:01:11.2]} 27. Ke2 {[%clk
0:01:35.4]} 27... Rh3 {[%clk 0:01:04.3]} 28. Rg4+ {[%clk 0:01:34.4]} 28... Kf8
{[%clk 0:01:03.5]} 29. c5 {[%clk 0:01:30.1]} 29... b5 {[%clk 0:00:44.9]} 30. Na5
{[%clk 0:01:26.7]} 30... Bc6 {[%clk 0:00:37.7]} 31. Nxc6 {[%clk 0:01:25.5]}
31... dxc6 {[%clk 0:00:37.7]} 32. e5 {[%clk 0:01:21.3]} 32... fxe5 {[%clk
0:00:34]} 33. a4 {[%clk 0:01:20.6]} 33... Rc3 {[%clk 0:00:31.6]} 34. axb5 {[%clk
0:01:19.5]} 34... axb5 {[%clk 0:00:31.9]} 35. h5 {[%clk 0:01:18.1]} 35... h6
{[%clk 0:00:29.4]} 36. Re4 {[%clk 0:01:13.8]} 36... Rxc5 {[%clk 0:00:29.4]} 37.
Kd3 {[%clk 0:01:13.7]} 37... f5 {[%clk 0:00:28.9]} 38. Re1 {[%clk 0:01:13]}
38... Rd5+ {[%clk 0:00:27.5]} 39. Kc3 {[%clk 0:01:12.4]} 39... Kf7 {[%clk
0:00:23.9]} 40. Rg1 {[%clk 0:01:11.4]} 40... e4 {[%clk 0:00:24.1]} 41. Rg6
{[%clk 0:01:11.1]} 41... e3 {[%clk 0:00:24.5]} 42. Rxh6 {[%clk 0:01:11.2]} 42...
e2 {[%clk 0:00:24.7]} 43. Rh7+ {[%clk 0:01:11.3]} 43... Kg8 {[%clk 0:00:25]} 44.
Re7 {[%clk 0:01:05.8]} 44... e1=Q+ {[%clk 0:00:24.8]} 45. Kc2 {[%clk 0:01:06]}
45... Qd2+ {[%clk 0:00:19.1]} 46. Kb3 {[%clk 0:01:06]} 46... Qd3+ {[%clk
0:00:18.1]} 47. Kb2 {[%clk 0:01:06.1]} 47... Qd2+ {[%clk 0:00:18]} 48. Kb3
{[%clk 0:01:06.4]} 48... Rd3# {[%clk 0:00:18.2]} 0-1

[Event "Early-Titled-Tuesday-Blitz-February-06-2024"]
[Site "Chess.com"]
[Date "2024.02.06"]
[Round "6"]
[White "mbchess97"]
[Black "Timerkhanov"]
[Result "0-1"]
[WhiteElo "2438"]
[BlackElo "2646"]
[TimeControl "180+1"]
[EndTime "9:07:05 PST"]
[Termination "Timerkhanov won by resignation"]

1. c4 {[%clk 0:03:00.9]} 1... c6 {[%clk 0:02:55.9]} 2. g3 {[%clk 0:02:57.1]}
2... d5 {[%clk 0:02:56.3]} 3. Nf3 {[%clk 0:02:57.2]} 3... Nf6 {[%clk 0:02:56.8]}
4. Bg2 {[%clk 0:02:57.3]} 4... g6 {[%clk 0:02:57.4]} 5. O-O {[%clk 0:02:57.4]}
5... Bg7 {[%clk 0:02:58.1]} 6. Qb3 {[%clk 0:02:46.2]} 6... O-O {[%clk
0:02:48.1]} 7. d3 {[%clk 0:02:37.1]} 7... Re8 {[%clk 0:02:46.1]} 8. Bf4 {[%clk
0:02:29.1]} 8... Nbd7 {[%clk 0:02:39.8]} 9. Nc3 {[%clk 0:02:21.2]} 9... e5
{[%clk 0:02:34.1]} 10. Bg5 {[%clk 0:02:19]} 10... h6 {[%clk 0:02:34.7]} 11. Bxf6
{[%clk 0:02:13.1]} 11... Nxf6 {[%clk 0:02:35.6]} 12. cxd5 {[%clk 0:02:05.4]}
12... cxd5 {[%clk 0:02:36.5]} 13. d4 {[%clk 0:01:59.8]} 13... e4 {[%clk
0:02:21.5]} 14. Ne5 {[%clk 0:01:56.5]} 14... Be6 {[%clk 0:02:17.8]} 15. Rac1
{[%clk 0:01:54.9]} 15... Nd7 {[%clk 0:02:11.2]} 16. Nxd7 {[%clk 0:01:32.2]}
16... Qxd7 {[%clk 0:02:12.1]} 17. Nb5 {[%clk 0:01:16.4]} 17... Rec8 {[%clk
0:01:56.2]} 18. Rxc8+ {[%clk 0:01:08.4]} 18... Qxc8 {[%clk 0:01:55.6]} 19. e3
{[%clk 0:00:48.4]} 19... Qc6 {[%clk 0:01:55.2]} 20. Nc3 {[%clk 0:00:41.9]} 20...
Rc8 {[%clk 0:01:46.9]} 21. f3 {[%clk 0:00:39.6]} 21... f5 {[%clk 0:01:27.9]} 22.
fxe4 {[%clk 0:00:36.8]} 22... fxe4 {[%clk 0:01:27.9]} 23. Bxe4 {[%clk
0:00:24.5]} 23... dxe4 {[%clk 0:01:17.3]} 24. d5 {[%clk 0:00:24.8]} 24... Bxc3
{[%clk 0:01:15.1]} 25. dxc6 {[%clk 0:00:21.1]} 25... Bxb3 {[%clk 0:01:14.5]} 26.
cxb7 {[%clk 0:00:18]} 26... Rb8 {[%clk 0:01:14.4]} 27. bxc3 {[%clk 0:00:17]}
27... Bxa2 {[%clk 0:01:12.1]} 28. Ra1 {[%clk 0:00:15.8]} 28... Bd5 {[%clk
0:01:08]} 29. Rxa7 {[%clk 0:00:15.8]} 29... Rxb7 {[%clk 0:01:08.1]} 30. Ra5
{[%clk 0:00:12.2]} 30... Bc4 {[%clk 0:01:04.2]} 31. Rc5 {[%clk 0:00:12]} 31...
Bd3 {[%clk 0:01:04.3]} 32. Rc6 {[%clk 0:00:12]} 32... Kf7 {[%clk 0:01:02.7]} 33.
Kg2 {[%clk 0:00:12]} 33... Rb2+ {[%clk 0:01:02.6]} 34. Kh3 {[%clk 0:00:11.6]}
34... Bf1+ {[%clk 0:00:57]} 35. Kg4 {[%clk 0:00:11.8]} 35... Rxh2 {[%clk
0:00:55.9]} 36. Kf4 {[%clk 0:00:11.7]} 36... Bd3 {[%clk 0:00:54]} 37. Ke5 {[%clk
0:00:12]} 37... Rh5+ {[%clk 0:00:53.8]} 38. Kd4 {[%clk 0:00:10.8]} 38... Rg5
{[%clk 0:00:52.7]} 39. Rc7+ {[%clk 0:00:10.8]} 39... Ke6 {[%clk 0:00:52.4]} 40.
Rc6+ {[%clk 0:00:10.4]} 40... Kd7 {[%clk 0:00:52.5]} 41. Ra6 {[%clk 0:00:09.5]}
41... Rxg3 {[%clk 0:00:52.5]} 42. c4 {[%clk 0:00:09.9]} 42... Rg1 {[%clk
0:00:52]} 43. c5 {[%clk 0:00:09.9]} 43... Bxa6 {[%clk 0:00:51.7]} 0-1